fUSD/lending_fUSD_20250217
["ID","MTS","AMOUNT","RATE_DAILY","PERIOD"]
[353340679,1739782275308,-414.00987751,0.00014109,2]
[353340680,1739782275318,-998.9,0.00014109,2]
[353340681,1739782275327,-1551.79,0.00014109,2]
[353340682,1739782275336,-500.0,0.00014109,2]
[353340683,1739782275346,-1847.02,0.00014109,2]
[353340684,1739782275355,-586.8,0.00014109,2]
[353340685,1739782275365,-500.0,0.00014109,2]
[353340686,1739782275374,-500.0,0.00014109,2]
[353340687,1739782275384,-1701.27,0.00014109,2]
[353340688,1739782275393,-600.56,0.00014109,2]
[353340689,1739782275403,-500.0,0.00014109,2]
[353340690,1739782275414,-886.89,0.00014109,2]
[353340691,1739782275424,-1445.61,0.00014109,2]
[353340692,1739782275434,-1575.03,0.00014109,2]
[353340693,1739782275443,-500.0,0.00014109,2]
[353340694,1739782275454,-1677.19,0.00014109,2]
[353340695,1739782275463,-1797.4,0.00014109,2]
[353340696,1739782275472,-500.0,0.00014109,2]
[353340697,1739782275482,-922.01,0.00014109,2]
[353340698,1739782275495,-500.0,0.00014109,2]
[353340699,1739782275505,-1271.08,0.00014109,2]
[353340700,1739782275515,-1813.57,0.00014109,2]
[353340701,1739782275525,-1220.73,0.00014109,2]
[353340702,1739782275534,-500.0,0.00014109,2]
[353340703,1739782275545,-500.0,0.00014109,2]
[353340704,1739782275555,-500.0,0.00014109,2]
[353340705,1739782275566,-1728.58,0.00014109,2]
[353340706,1739782275576,-4549.55,0.00014109,2]
[353340707,1739782275586,-824.72,0.00014109,2]
[353340708,1739782275595,-500.0,0.00014109,2]
[353340709,1739782275605,-1386.78,0.00014109,2]
[353340710,1739782275614,-2188.82,0.00014109,2]
[353340711,1739782275625,-500.0,0.00014109,2]
[353340712,1739782275634,-500.0,0.00014109,2]
[353340713,1739782275644,-500.0,0.00014109,2]
[353340714,1739782275653,-571.8,0.00014109,2]
[353340715,1739782275662,-500.0,0.00014109,2]
[353340716,1739782275672,-988.86,0.00014109,2]
[353340717,1739782275681,-500.0,0.00014109,2]
[353340718,1739782275691,-1847.84,0.00014109,2]
[353340719,1739782275700,-1053.02,0.00014109,2]
[353340720,1739782275709,-1440.2,0.00014109,2]
[353340721,1739782275719,-1037.56,0.00014109,2]
[353340722,1739782275728,-557.11,0.00014109,2]
[353340723,1739782275738,-500.0,0.00014109,2]
[353340724,1739782275748,-517.35115517,0.00014109,2]
[353340725,1739782275766,-802.9,0.00014109,2]
[353340726,1739782275778,-500.0,0.00014109,2]
[353340727,1739782275787,-2029.25,0.00014109,2]
[353340728,1739782275797,-683.14,0.00014109,2]
[353340729,1739782275808,-562.58,0.00014109,2]
[353340730,1739782275818,-1363.24,0.00014109,2]
[353340731,1739782275828,-500.0,0.00014109,2]
[353340732,1739782275838,-664.98,0.00014109,2]
[353340733,1739782275848,-500.0,0.00014109,2]
[353340734,1739782275857,-500.0,0.00014109,2]
[353340735,1739782275867,-1710.06,0.00014109,2]
[353340736,1739782275877,-649.3,0.00014109,2]
[353340737,1739782275887,-1213.04,0.00014109,2]
[353340738,1739782275897,-2532.35,0.00014109,2]
[353340739,1739782275906,-500.0,0.00014109,2]
[353340740,1739782275916,-538.6,0.00014109,2]
[353340741,1739782275926,-500.0,0.00014109,2]
[353340742,1739782275935,-702.88,0.00014109,2]
[353340743,1739782275945,-500.0,0.00014109,2]
[353340744,1739782275955,-1331.97,0.00014109,2]
[353340745,1739782275965,-900.35,0.00014109,2]
[353340746,1739782275975,-606.3,0.00014109,2]
[353340747,1739782275985,-500.0,0.00014109,2]
[353340748,1739782275995,-500.0,0.00014109,2]
[353340749,1739782276006,-500.0,0.00014109,2]
[353340750,1739782276016,-1040.4,0.00014109,2]
[353340751,1739782276025,-1450.57,0.00014109,2]
[353340752,1739782276035,-568.27205026,0.00014109,2]
[353340753,1739782276045,-1277.8,0.00014109,2]
[353340754,1739782276055,-500.0,0.00014109,2]
[353340755,1739782276066,-1045.42,0.00014109,2]
[353340756,1739782276076,-497.83197288,0.00014109,2]
[353340757,1739782276085,-500.0,0.00014109,2]
[353340758,1739782276095,-844.67,0.00014109,2]
[353340759,1739782276105,-1239.77,0.00014109,2]
[353340760,1739782276115,-1330.04,0.00014109,2]
[353340761,1739782276124,-545.47,0.00014109,2]
[353340762,1739782276134,-500.0,0.00014109,2]
[353340763,1739782276144,-753.37,0.00014109,2]
[353340764,1739782276154,-1295.43,0.00014109,2]
[353340765,1739782276163,-500.0,0.00014109,2]
[353340766,1739782276173,-500.0,0.00014109,2]
[353340767,1739782276182,-538.43,0.00014109,2]
[353340768,1739782276192,-500.0,0.00014109,2]
[353340769,1739782276202,-1569.09,0.00014109,2]
[353340770,1739782276211,-216.800397,0.00014158,6]
[353340771,1739782276221,-1100.0,0.00014168,2]
[353340772,1739782276230,-808.574074,0.00014191,2]
[353340773,1739782276240,-655.639204,0.00014191,2]
[353340774,1739782276250,-500.0,0.00014191,2]
[353340775,1739782276259,-500.0,0.00014191,2]
[353340776,1739782276269,-361.19897075,0.00014191,2]
[353340777,1739782276278,-500.0,0.00014191,2]
[353340778,1739782276289,-500.0,0.00014191,2]
[353340779,1739782276299,-500.0,0.00014191,2]
[353340780,1739782276309,-500.0,0.00014191,2]
[353340781,1739782276318,-177.55468326,0.00014191,2]
[353340782,1739782276327,-500.0,0.00014191,2]
[353340783,1739782276336,-500.0,0.00014191,2]
[353340784,1739782276346,-436.63579437,0.00014191,2]
[353340785,1739782276355,-500.0,0.00014191,2]
[353340786,1739782276364,-500.0,0.00014191,2]
[353340787,1739782276373,-500.0,0.00014191,2]
[353340788,1739782276382,-447.03884138,0.00014191,2]
[353340789,1739782276391,-500.0,0.00014191,2]
[353340790,1739782276401,-514.56387301,0.00014191,2]
[353340791,1739782276414,-500.0,0.00014191,2]
[353340792,1739782276423,-500.0,0.00014191,2]
[353340793,1739782276432,-500.0,0.00014191,2]
[353340794,1739782276441,-500.0,0.00014191,2]
[353340795,1739782276452,-500.0,0.00014191,2]
[353340796,1739782276461,-500.0,0.00014191,2]
[353340797,1739782276470,-500.0,0.00014191,2]
[353340798,1739782276481,-500.0,0.00014191,2]
[353340799,1739782276491,-500.0,0.00014191,2]
[353340800,1739782276501,-604.74,0.00014191,2]
[353340801,1739782276510,-227.0018422,0.00014191,2]
[353340802,1739782276519,-500.0,0.00014191,2]
[353340803,1739782276528,-500.0,0.00014191,2]
[353340804,1739782276537,-575.7,0.00014191,2]
[353340805,1739782276547,-907.72,0.00014191,2]
[353340806,1739782276557,-500.0,0.00014191,2]
[353340807,1739782276566,-500.0,0.00014191,2]
[353340808,1739782276575,-732.02,0.00014191,2]
[353340809,1739782276584,-562.63,0.00014191,2]
[353340810,1739782276594,-500.0,0.00014191,2]
[353340811,1739782276603,-500.0,0.00014191,2]
[353340812,1739782276613,-951.64,0.00014191,2]
[353340813,1739782276625,-500.0,0.00014191,2]
[353340814,1739782276636,-633.77,0.00014191,2]
[353340815,1739782276647,-664.66,0.00014191,2]
[353340816,1739782276658,-500.0,0.00014191,2]
[353340817,1739782276667,-500.0,0.00014191,2]
[353340818,1739782276676,-722.21,0.00014191,2]
[353340819,1739782276685,-543.55007548,0.00014191,2]
[353340820,1739782276694,-592.21,0.00014191,2]
[353340821,1739782276704,-500.0,0.00014191,2]
[353340822,1739782276712,-500.0,0.00014191,2]
[353340823,1739782276721,-500.0,0.00014191,2]
[353340824,1739782276731,-507.13,0.00014191,2]
[353340825,1739782276742,-500.0,0.00014191,2]
[353340826,1739782276753,-995.97,0.00014191,2]
[353340827,1739782276762,-536.86,0.00014191,2]
[353340828,1739782276771,-566.9,0.00014191,2]
[353340829,1739782276780,-500.0,0.00014191,2]
[353340830,1739782276789,-500.0,0.00014191,2]
[353340831,1739782276798,-500.0,0.00014191,2]
[353340832,1739782276808,-500.0,0.00014191,2]
[353340833,1739782276818,-500.0,0.00014191,2]
[353340834,1739782276827,-500.0,0.00014191,2]
[353340835,1739782276836,-500.0,0.00014191,2]
[353340836,1739782276846,-500.0,0.00014191,2]
[353340837,1739782276855,-342.67249817,0.00014191,2]
[353340838,1739782276865,-500.0,0.00014191,2]
[353340839,1739782276874,-500.0,0.00014191,2]
[353340840,1739782276883,-500.0,0.00014191,2]
[353340841,1739782276893,-500.0,0.00014191,2]
[353340842,1739782276902,-738.44,0.00014191,2]
[353340843,1739782276911,-500.0,0.00014191,2]
[353340844,1739782276919,-580.16,0.00014191,2]
[353340845,1739782276930,-557.48269156,0.00014191,2]
[353340846,1739782276939,-619.49,0.00014191,2]
[353340847,1739782276948,-560.76,0.00014191,2]
[353340848,1739782276957,-500.0,0.00014191,2]
[353340849,1739782276966,-500.0,0.00014191,2]
[353340850,1739782276976,-1077.47,0.00014191,2]
[353340851,1739782276985,-500.0,0.00014191,2]
[353340852,1739782276994,-536.91,0.00014191,2]
[353340853,1739782277003,-500.0,0.00014191,2]
[353340854,1739782277012,-500.0,0.00014191,2]
[353340855,1739782277021,-558.82,0.00014191,2]
[353340856,1739782277031,-500.0,0.00014191,2]
[353340857,1739782277041,-850.62,0.00014191,2]
[353340858,1739782277050,-500.0,0.00014191,2]
[353340859,1739782277060,-708.1,0.00014191,2]
[353340860,1739782277070,-500.0,0.00014191,2]
[353340861,1739782277079,-641.57,0.00014191,2]
[353340862,1739782277089,-528.32,0.00014191,2]
[353340863,1739782277098,-500.0,0.00014191,2]
[353340864,1739782277108,-684.2,0.00014191,2]
[353340865,1739782277117,-890.46,0.00014191,2]
[353340866,1739782277126,-612.05,0.00014191,2]
[353340867,1739782277135,-500.0,0.00014191,2]
[353340868,1739782277144,-568.28,0.00014191,2]
[353340869,1739782277153,-500.0,0.00014191,2]
[353340870,1739782277162,-537.33,0.00014191,2]
[353340871,1739782277171,-743.6,0.00014191,2]
[353340872,1739782277180,-647.11,0.00014191,2]
[353340873,1739782277190,-559.89,0.00014191,2]
[353340874,1739782277199,-649.94,0.00014191,2]
[353340875,1739782277208,-783.7,0.00014191,2]
[353340876,1739782277217,-500.0,0.00014191,2]
[353340877,1739782277227,-500.0,0.00014191,2]
[353340878,1739782277237,-429.65519093,0.00014191,2]
[353340879,1739782277246,-500.0,0.00014191,2]
[353340880,1739782277255,-500.0,0.00014191,2]
[353340881,1739782277265,-500.0,0.00014191,2]
[353340882,1739782277274,-560.76,0.00014191,2]
[353340883,1739782277283,-950.17,0.00014191,2]
[353340884,1739782277293,-500.0,0.00014191,2]
[353340885,1739782277302,-593.13,0.00014191,2]
[353340886,1739782277312,-561.01,0.00014191,2]
[353340887,1739782277322,-500.0,0.00014191,2]
[353340888,1739782277331,-500.0,0.00014191,2]
[353340889,1739782277341,-500.0,0.00014191,2]
[353340890,1739782277350,-500.0,0.00014191,2]
[353340891,1739782277359,-500.0,0.00014191,2]
[353340892,1739782277369,-500.0,0.00014191,2]
[353340893,1739782277378,-500.0,0.00014191,2]
[353340894,1739782277387,-500.0,0.00014191,2]
[353340895,1739782277396,-622.63,0.00014191,2]
[353340896,1739782277406,-500.0,0.00014191,2]
[353340897,1739782277418,-500.0,0.00014191,2]
[353340898,1739782277427,-508.41,0.00014191,2]
[353340899,1739782277436,-500.0,0.00014191,2]
[353340900,1739782277445,-482.36947692,0.00014191,2]
[353340901,1739782277455,-500.0,0.00014191,2]
[353340902,1739782277464,-716.43,0.00014191,2]
[353340903,1739782277474,-530.22,0.00014191,2]
[353340904,1739782277483,-733.96,0.00014191,2]
[353340905,1739782277495,-500.0,0.00014191,2]
[353340906,1739782277504,-500.0,0.00014191,2]
[353340907,1739782277514,-500.0,0.00014191,2]
[353340908,1739782277524,-500.0,0.00014191,2]
[353340909,1739782277533,-673.88,0.00014191,2]
[353340910,1739782277547,-500.0,0.00014191,2]
[353340911,1739782277556,-511.13,0.00014191,2]
[353340912,1739782277567,-500.0,0.00014191,2]
[353340913,1739782277576,-559.67,0.00014191,2]
[353340914,1739782277585,-500.0,0.00014191,2]
[353340915,1739782277594,-778.97,0.00014191,2]
[353340916,1739782277604,-500.0,0.00014191,2]
[353340917,1739782277613,-500.0,0.00014191,2]
[353340918,1739782277622,-500.0,0.00014191,2]
[353340919,1739782277632,-500.0,0.00014191,2]
[353340920,1739782277642,-500.0,0.00014191,2]
[353340921,1739782277651,-500.0,0.00014191,2]
[353340922,1739782277661,-500.0,0.00014191,2]
[353340923,1739782277671,-1031.51,0.00014191,2]
[353340924,1739782277680,-500.0,0.00014191,2]
[353340925,1739782277690,-662.08,0.00014191,2]
[353340926,1739782277699,-500.0,0.00014191,2]
[353340927,1739782277708,-500.0,0.00014191,2]
[353340928,1739782277719,-766.22,0.00014191,2]
[353340929,1739782277728,-500.0,0.00014191,2]
[353340930,1739782277738,-500.0,0.00014191,2]
[353340931,1739782277747,-500.0,0.00014191,2]
[353340932,1739782277757,-500.0,0.00014191,2]
[353340933,1739782277766,-500.0,0.00014191,2]
[353340934,1739782277776,-500.0,0.00014191,2]
[353340935,1739782277786,-572.19,0.00014191,2]
[353340936,1739782277796,-500.0,0.00014191,2]
[353340937,1739782277806,-500.0,0.00014191,2]
[353340938,1739782277818,-500.0,0.00014191,2]
[353340939,1739782277827,-817.69,0.00014191,2]
[353340940,1739782277837,-500.0,0.00014191,2]
[353340941,1739782277847,-500.0,0.00014191,2]
[353340942,1739782277858,-519.96,0.00014191,2]
[353340943,1739782277867,-500.0,0.00014191,2]
[353340944,1739782278063,-522.84,0.00014191,2]
[353340945,1739782278073,-500.0,0.00014191,2]
[353340946,1739782278082,-500.0,0.00014191,2]
[353340947,1739782278092,-500.0,0.00014191,2]
[353340948,1739782278101,-500.0,0.00014191,2]
[353340949,1739782278111,-500.0,0.00014191,2]
[353340950,1739782278120,-614.77,0.00014191,2]
[353340951,1739782278130,-2827.32,0.00014191,2]
[353340952,1739782278139,-500.0,0.00014191,2]
[353340953,1739782278149,-1812.07,0.00014191,2]
[353340954,1739782278158,-520.4,0.00014191,2]
[353340955,1739782278167,-819.14,0.00014191,2]
[353340956,1739782278177,-1274.62,0.00014191,2]
[353340957,1739782278187,-4372.56,0.00014191,2]
[353340958,1739782278196,-500.0,0.00014191,2]
[353340959,1739782278206,-500.0,0.00014191,2]
[353340960,1739782278216,-500.0,0.00014191,2]
[353340961,1739782278226,-538.08,0.00014191,2]
[353340962,1739782278235,-1324.0,0.00014191,2]
[353340963,1739782278244,-901.12,0.00014191,2]
[353340964,1739782278254,-500.0,0.00014191,2]
[353340965,1739782278263,-1422.17,0.00014191,2]
[353340966,1739782278273,-1334.19,0.00014191,2]
[353340967,1739782278282,-817.6,0.00014191,2]
[353340968,1739782278292,-2256.34,0.00014191,2]
[353340969,1739782278302,-771.38,0.00014191,2]
[353340970,1739782278313,-500.0,0.00014191,2]
[353340971,1739782278323,-735.66,0.00014191,2]
[353340972,1739782278332,-2032.65,0.00014191,2]
[353340973,1739782278342,-749.45,0.00014191,2]
[353340974,1739782278351,-1125.52,0.00014191,2]
[353340975,1739782278360,-772.0,0.00014191,2]
[353340976,1739782278369,-739.22,0.00014191,2]
[353340977,1739782278379,-500.0,0.00014191,2]
[353340978,1739782278388,-546.19,0.00014191,2]
[353340979,1739782278397,-1069.07,0.00014191,2]
[353340980,1739782278410,-1494.23,0.00014191,2]
[353340981,1739782278419,-864.83,0.00014191,2]
[353340982,1739782278428,-500.0,0.00014191,2]
[353340983,1739782278444,-935.35,0.00014191,2]
[353340984,1739782278455,-615.69,0.00014191,2]
[353340985,1739782278464,-677.77,0.00014191,2]
[353340986,1739782278473,-500.0,0.00014191,2]
[353340987,1739782278484,-707.08,0.00014191,2]
[353340988,1739782278493,-1876.33,0.00014191,2]
[353340989,1739782278502,-2554.16,0.00014191,2]
[353340990,1739782278511,-1026.29,0.00014191,2]
[353340991,1739782278520,-1043.92,0.00014191,2]
[353340992,1739782278529,-500.0,0.00014191,2]
[353340993,1739782278538,-500.0,0.00014191,2]
[353340994,1739782278548,-511.47654872,0.00014191,2]
[353340995,1739782278557,-1889.27,0.00014191,2]
[353340996,1739782278568,-500.0,0.00014191,2]
[353340997,1739782278578,-500.0,0.00014191,2]
[353340998,1739782278587,-875.92,0.00014191,2]
[353340999,1739782278596,-1579.86,0.00014191,2]
[353341000,1739782278606,-500.0,0.00014191,2]
[353341001,1739782278620,-500.0,0.00014191,2]
[353341002,1739782278630,-493.64311599,0.00014191,2]
[353341003,1739782278639,-1021.86,0.00014191,2]
[353341004,1739782278649,-2430.21,0.00014191,2]
[353341005,1739782278659,-1775.26,0.00014191,2]
[353341006,1739782278669,-1126.39,0.00014191,2]
[353341007,1739782278679,-500.0,0.00014191,2]
[353341008,1739782278689,-595.84,0.00014191,2]
[353341009,1739782278698,-1246.28,0.00014191,2]
[353341010,1739782278708,-1440.41,0.00014191,2]
[353341011,1739782278718,-1157.83,0.00014191,2]
[353341012,1739782278728,-500.0,0.00014191,2]
[353341013,1739782278738,-579.64,0.00014191,2]
[353341014,1739782278747,-500.0,0.00014191,2]
[353341015,1739782278757,-736.98,0.00014191,2]
[353341016,1739782278766,-602.96,0.00014191,2]
[353341017,1739782278776,-662.81,0.00014191,2]
[353341018,1739782278786,-1734.6,0.00014191,2]
[353341019,1739782278796,-996.06,0.00014191,2]
[353341020,1739782278806,-500.0,0.00014191,2]
[353341021,1739782278817,-1538.42,0.00014191,2]
[353341022,1739782278827,-1344.96,0.00014191,2]
[353341023,1739782278837,-500.0,0.00014191,2]
[353341024,1739782278847,-1060.38,0.00014191,2]
[353341025,1739782278856,-1225.17,0.00014191,2]
[353341026,1739782278866,-500.0,0.00014191,2]
[353341027,1739782278876,-500.0,0.00014191,2]
[353341028,1739782278886,-1000.0,0.00014191,2]
[353341029,1739782278896,-879.19,0.00014191,2]
[353341030,1739782278906,-627.0,0.00014191,2]
[353341031,1739782278916,-5333.3,0.00014191,2]
[353341032,1739782278926,-500.0,0.00014191,2]
[353341033,1739782278937,-1241.74,0.00014191,2]
[353341034,1739782278947,-500.0,0.00014191,2]
[353341035,1739782278957,-1771.28,0.00014191,2]
[353341036,1739782278968,-885.43,0.00014191,2]
[353341037,1739782278978,-1586.54,0.00014191,2]
[353341038,1739782278988,-1307.73,0.00014191,2]
[353341039,1739782278998,-756.31,0.00014191,2]
[353341040,1739782279008,-500.0,0.00014191,2]
[353341041,1739782279017,-500.0,0.00014191,2]
[353341042,1739782279028,-917.32,0.00014191,2]
[353341043,1739782279039,-707.23,0.00014191,2]
[353341044,1739782279048,-500.0,0.00014191,2]
[353341045,1739782279061,-2401.78,0.00014191,2]
[353341046,1739782279071,-1455.33,0.00014191,2]
[353341047,1739782279081,-500.0,0.00014191,2]
[353341048,1739782279091,-1605.77,0.00014191,2]
[353341049,1739782279102,-1089.15,0.00014191,2]
[353341050,1739782279113,-1269.98,0.00014191,2]
[353341051,1739782279123,-998.9,0.00014191,2]
[353341052,1739782279134,-1551.79,0.00014191,2]
[353341053,1739782279145,-500.0,0.00014191,2]
[353341054,1739782279155,-1847.02,0.00014191,2]
[353341055,1739782279165,-586.8,0.00014191,2]
[353341056,1739782279175,-500.0,0.00014191,2]
[353341057,1739782279185,-500.0,0.00014191,2]
[353341058,1739782279194,-1701.27,0.00014191,2]
[353341059,1739782279204,-600.56,0.00014191,2]
[353341060,1739782279214,-500.0,0.00014191,2]
[353341061,1739782279224,-886.89,0.00014191,2]
[353341062,1739782279233,-1445.61,0.00014191,2]
[353341063,1739782279243,-1575.03,0.00014191,2]
[353341064,1739782279254,-297.90694966,0.00014191,2]
[353341065,1739782279264,-1677.19,0.00014191,2]
[353341066,1739782279274,-1797.4,0.00014191,2]
[353341067,1739782279284,-500.0,0.00014191,2]
[353341068,1739782279294,-922.01,0.00014191,2]
[353341069,1739782279303,-500.0,0.00014191,2]
[353341070,1739782279314,-1271.08,0.00014191,2]
[353341071,1739782279324,-1813.57,0.00014191,2]
[353341072,1739782279334,-1220.73,0.00014191,2]
[353341073,1739782279344,-500.0,0.00014191,2]
[353341074,1739782279354,-500.0,0.00014191,2]
[353341075,1739782279364,-297.19547388,0.00014191,2]
[353341076,1739782279374,-1728.58,0.00014191,2]
[353341077,1739782279384,-4549.55,0.00014191,2]
[353341078,1739782279394,-824.72,0.00014191,2]
[353341079,1739782279407,-500.0,0.00014191,2]
[353341080,1739782279417,-1386.78,0.00014191,2]
[353341081,1739782279427,-2188.82,0.00014191,2]
[353341082,1739782279437,-500.0,0.00014191,2]
[353341083,1739782279447,-500.0,0.00014191,2]
[353341084,1739782279457,-500.0,0.00014191,2]
[353341085,1739782279467,-571.8,0.00014191,2]
[353341086,1739782279477,-500.0,0.00014191,2]
[353341087,1739782279487,-988.86,0.00014191,2]
[353341088,1739782279499,-500.0,0.00014191,2]
[353341089,1739782279508,-1847.84,0.00014191,2]
[353341090,1739782279518,-1053.02,0.00014191,2]
[353341091,1739782279527,-1440.2,0.00014191,2]
[353341092,1739782279537,-1037.56,0.00014191,2]
[353341093,1739782279547,-557.11,0.00014191,2]
[353341094,1739782279557,-500.0,0.00014191,2]
[353341095,1739782279568,-802.9,0.00014191,2]
[353341096,1739782279577,-500.0,0.00014191,2]
[353341097,1739782279587,-2029.25,0.00014191,2]
[353341098,1739782279596,-683.14,0.00014191,2]
[353341099,1739782279605,-562.58,0.00014191,2]
[353341100,1739782279615,-1363.24,0.00014191,2]
[353341101,1739782279624,-500.0,0.00014191,2]
[353341102,1739782279633,-664.98,0.00014191,2]
[353341103,1739782279643,-500.0,0.00014191,2]
[353341104,1739782279653,-500.0,0.00014191,2]
[353341105,1739782279663,-1710.06,0.00014191,2]
[353341106,1739782279672,-649.3,0.00014191,2]
[353341107,1739782279682,-1213.04,0.00014191,2]
[353341108,1739782279692,-2532.35,0.00014191,2]
[353341109,1739782279703,-500.0,0.00014191,2]
[353341110,1739782279713,-538.6,0.00014191,2]
[353341111,1739782279723,-500.0,0.00014191,2]
[353341112,1739782279732,-702.88,0.00014191,2]
[353341113,1739782279742,-500.0,0.00014191,2]
[353341114,1739782279760,-1331.97,0.00014191,2]
[353341115,1739782279776,-900.35,0.00014191,2]
[353341116,1739782279789,-606.3,0.00014191,2]
[353341117,1739782279802,-500.0,0.00014191,2]
[353341118,1739782279819,-500.0,0.00014191,2]
[353341119,1739782279834,-500.0,0.00014191,2]
[353341120,1739782279848,-1040.4,0.00014191,2]
[353341121,1739782279862,-1450.57,0.00014191,2]
[353341122,1739782279876,-1277.8,0.00014191,2]
[353341123,1739782279887,-500.0,0.00014191,2]
[353341124,1739782279902,-1045.42,0.00014191,2]
[353341125,1739782279916,-500.0,0.00014191,2]
[353341126,1739782279931,-844.67,0.00014191,2]
[353341127,1739782279948,-1239.77,0.00014191,2]
[353341128,1739782279963,-1330.04,0.00014191,2]
[353341129,1739782279979,-545.47,0.00014191,2]
[353341130,1739782279995,-442.4,0.00014191,2]
[353341131,1739782280013,-753.37,0.00014191,2]
[353341132,1739782280027,-1295.43,0.00014191,2]
[353341133,1739782280041,-500.0,0.00014191,2]
[353341134,1739782280058,-500.0,0.00014191,2]
[353341135,1739782280072,-538.43,0.00014191,2]
[353341136,1739782280085,-500.0,0.00014191,2]
[353341137,1739782280098,-1569.09,0.00014191,2]
[353341138,1739782280114,-152.0,0.00014244,3]
[353341139,1739782280129,-500.0,0.00014247,7]
[353341140,1739782280140,-808.574074,0.00014273,2]
[353341141,1739782280152,-655.639204,0.00014273,2]
[353341142,1739782280167,-500.0,0.00014273,2]
[353341143,1739782280180,-500.0,0.00014273,2]
[353341144,1739782280197,-500.0,0.00014273,2]
[353341145,1739782280213,-500.0,0.00014273,2]
[353341146,1739782280226,-500.0,0.00014273,2]
[353341147,1739782280238,-500.0,0.00014273,2]
[353341148,1739782280251,-500.0,0.00014273,2]
[353341149,1739782280265,-500.0,0.00014273,2]
[353341150,1739782280278,-500.0,0.00014273,2]
[353341151,1739782280291,-500.0,0.00014273,2]
[353341152,1739782280305,-500.0,0.00014273,2]
[353341153,1739782280323,-500.0,0.00014273,2]
[353341154,1739782280336,-500.0,0.00014273,2]
[353341155,1739782280349,-500.0,0.00014273,2]
[353341156,1739782280362,-500.0,0.00014273,2]
[353341157,1739782280375,-500.0,0.00014273,2]
[353341158,1739782280389,-500.0,0.00014273,2]
[353341159,1739782280401,-500.0,0.00014273,2]
[353341160,1739782280416,-500.0,0.00014273,2]
[353341161,1739782280428,-500.0,0.00014273,2]
[353341162,1739782280441,-500.0,0.00014273,2]
[353341163,1739782280454,-604.74,0.00014273,2]
[353341164,1739782280466,-575.9479066,0.00014273,2]
[353341165,1739782280478,-500.0,0.00014273,2]
[353341166,1739782280490,-575.7,0.00014273,2]
[353341167,1739782280505,-907.72,0.00014273,2]
[353341168,1739782280517,-500.0,0.00014273,2]
[353341169,1739782280530,-500.0,0.00014273,2]
[353341170,1739782280542,-732.02,0.00014273,2]
[353341171,1739782280554,-562.63,0.00014273,2]
[353341172,1739782280568,-500.0,0.00014273,2]
[353341173,1739782280580,-500.0,0.00014273,2]
[353341174,1739782280592,-951.64,0.00014273,2]
[353341175,1739782280605,-500.0,0.00014273,2]
[353341176,1739782280617,-633.77,0.00014273,2]
[353341177,1739782280628,-664.66,0.00014273,2]
[353341178,1739782280640,-500.0,0.00014273,2]